bitfinex/quotes_BTCUSD_20260125
["timestamp","ask_amount","ask_price","bid_price","bid_amount"]
[1769322970237,0.71654798,88755.0,88743.0,0.0001984]
[1769322970443,0.18434671,88757.0,88743.0,0.0001984]
[1769322970643,0.18434671,88757.0,88731.0,0.26432535]
[1769322970644,0.0112676,88750.0,88732.0,0.00626882]
[1769322970880,0.48425466,88749.0,88732.0,0.00626882]
[1769322971084,0.48425466,88749.0,88732.0,0.00674403]
[1769322971085,0.47298693,88746.0,88732.0,0.00674403]
[1769322971292,0.47298693,88745.0,88732.0,0.00047521]
[1769322973988,0.05631072,88744.0,88732.0,0.00047521]
[1769322974193,0.27479851,88745.0,88732.0,0.00047521]
[1769322975598,0.01126773,88749.0,88732.0,0.00047521]
[1769322975599,0.27678039,88741.0,88732.0,0.00047521]
[1769322975796,0.52505268,88740.0,88732.0,0.00047521]
[1769322978244,0.24827229,88740.0,88732.0,0.00047521]
[1769322979370,0.05631072,88739.0,88732.0,0.00047521]
[1769322985404,0.01752766,88748.0,88732.0,0.00047521]
[1769322985609,0.13446056,88751.0,88739.0,8.93e-05]
[1769322985821,0.01126684,88756.0,88739.0,8.93e-05]
[1769322986009,0.13446056,88753.0,88739.0,8.93e-05]
[1769322986292,0.01126633,88760.0,88743.0,0.24738648]
[1769322986509,0.01126595,88763.0,88744.0,0.91519204]
[1769322986713,0.01126595,88763.0,88740.0,0.66780556]
[1769322986714,0.01752766,88762.0,88740.0,0.66780556]
[1769322986955,0.01126633,88760.0,88743.0,0.24738648]
[1769322987154,0.01126646,88759.0,88744.0,0.91519204]
[1769322987376,0.05631072,88759.0,88744.0,0.91519204]
[1769322989008,0.05631072,88759.0,88733.0,0.01126976]
[1769322989207,0.05631072,88759.0,88737.0,0.24738648]
[1769322989426,0.05631072,88759.0,88740.0,0.66780556]
[1769322989625,0.05631072,88759.0,88742.0,0.66780556]
[1769322989783,0.05631072,88759.0,88743.0,0.91519204]
[1769322991540,0.05631072,88759.0,88743.0,0.24738648]
[1769322991736,0.01752766,88758.0,88744.0,0.91519204]
[1769322992132,0.05631072,88759.0,88744.0,0.91519204]
[1769322992537,0.01752766,88758.0,88744.0,0.91519204]
[1769322994065,0.02879374,88762.0,88744.0,0.91519204]
[1769322994277,0.0112662,88761.0,88744.0,0.91519204]
[1769322994714,0.01752766,88762.0,88744.0,0.91519204]
[1769322995152,0.02879361,88763.0,88744.0,0.91519204]
[1769322995370,0.06759698,88762.0,88744.0,0.91519204]
[1769322995593,0.01752766,88761.0,88744.0,0.91519204]
[1769322996022,0.07383838,88761.0,88744.0,0.91519204]
[1769322996469,0.07383838,88761.0,88745.0,0.00090761]
[1769322996671,0.01752766,88760.0,88745.0,0.00090761]
[1769322996845,0.05631072,88761.0,88745.0,0.00090761]
[1769322998763,0.05631072,88761.0,88745.0,0.00135321]
[1769322999533,0.05631072,88761.0,88745.0,0.93276097]
[1769322999669,0.05631072,88761.0,88745.0,0.93140776]
[1769323002785,0.05631072,88761.0,88737.0,0.01126925]
[1769323003340,0.05631072,88761.0,88740.0,0.69517171]
[1769323003510,0.05631072,88761.0,88744.0,0.69517171]
[1769323003717,0.05631072,88761.0,88746.0,0.69517171]
[1769323003914,0.05631072,88761.0,88747.0,0.23623605]
[1769323006511,0.05631072,88761.0,88748.0,0.00112667]
[1769323008371,0.05631072,88761.0,88748.0,0.00225324]
[1769323008560,0.01752766,88760.0,88748.0,0.00225324]
[1769323008969,0.05631072,88761.0,88748.0,0.00225324]
[1769323010325,0.0112662,88761.0,88748.0,0.00225324]
[1769323010578,0.01752766,88760.0,88748.0,0.00225324]
[1769323010777,0.02879399,88760.0,88748.0,0.00225324]
[1769323011125,0.01752766,88760.0,88748.0,0.00225324]
[1769323011578,0.02879386,88761.0,88748.0,0.00225324]
[1769323012395,0.05631072,88759.0,88748.0,0.00225324]
[1769323012560,0.01752766,88758.0,88748.0,0.00225324]
[1769323012978,0.01752766,88758.0,88747.0,0.23623605]
[1769323013344,0.01752766,88758.0,88746.0,0.69517171]
[1769323013548,0.02879425,88758.0,88746.0,0.69517171]
[1769323014179,0.01126671,88757.0,88746.0,0.69517171]
[1769323014349,0.01752766,88756.0,88746.0,0.69517171]
[1769323014772,0.01752766,88759.0,88746.0,0.69517171]
[1769323014979,0.01126671,88757.0,88732.0,0.00047521]
[1769323015178,0.23356224,88754.0,88733.0,0.93140776]
[1769323015370,0.01752766,88753.0,88736.0,0.69517171]
[1769323015628,0.01752766,88753.0,88732.0,0.00047521]
[1769323015629,0.01752766,88756.0,88739.0,0.23623605]
[1769323015765,0.01752766,88756.0,88739.0,0.93140776]
[1769323016806,0.01752766,88757.0,88739.0,0.93140776]
[1769323018789,0.05631072,88756.0,88739.0,0.93140776]
[1769323018986,0.01752766,88755.0,88739.0,0.93140776]
[1769323020509,0.01752766,88757.0,88739.0,0.93140776]
[1769323021399,0.01752766,88758.0,88739.0,0.93140776]
[1769323021596,0.01752766,88758.0,88739.0,0.93159626]
[1769323021597,0.14106007,88758.0,88739.0,0.93159626]
[1769323022214,0.12979348,88758.0,88739.0,0.93159626]
[1769323022444,0.05631072,88756.0,88739.0,0.93159626]
[1769323022613,0.01752766,88755.0,88739.0,0.93159626]
[1769323024042,0.20800448,88757.0,88739.0,0.93159626]
[1769323024236,0.01752766,88756.0,88739.0,0.93159626]
[1769323024442,0.27727539,88754.0,88739.0,0.0001885]
[1769323024737,0.27727539,88751.0,88739.0,0.0001885]
[1769323024900,0.20800448,88750.0,88739.0,0.0001885]
[1769323025147,0.27727539,88750.0,88739.0,0.0001885]
[1769323025431,0.20800448,88747.0,88739.0,0.0001885]
[1769323028872,0.05631072,88746.0,88739.0,0.0001885]
[1769323029842,0.27708878,88744.0,88739.0,0.0001885]
[1769323030042,0.27677728,88740.0,88739.0,0.0001885]
[1769323030246,0.27677728,88740.0,88732.0,0.00063171]
[1769323031072,0.20800448,88742.0,88732.0,0.00063171]
[1769323032925,0.05631072,88741.0,88732.0,0.00063171]
[1769323047423,0.01752766,88744.0,88732.0,0.00063171]
[1769323049456,0.05631072,88743.0,88732.0,0.00063171]
[1769323051295,0.01752766,88742.0,88732.0,0.00063171]
[1769323051902,0.05631072,88743.0,88732.0,0.00063171]
[1769323060635,0.01752766,88742.0,88732.0,0.00063171]
[1769323062195,0.01752766,88744.0,88732.0,0.00063171]
[1769323063562,0.00063171,88732.0,88723.0,0.0001565]
[1769323063808,0.00072798,88732.0,88723.0,0.0001565]
[1769323063998,9.627e-05,88732.0,88723.0,0.0001565]
[1769323067149,0.05631072,88731.0,88723.0,0.0001565]
[1769323067328,0.08849069,88736.0,88723.0,0.0001565]
[1769323067530,0.08849069,88736.0,88723.0,0.00029924]
[1769323069331,0.05631066,88735.0,88723.0,0.00029924]
[1769323073012,0.05631066,88735.0,88724.0,0.19633881]
[1769323073214,0.05631066,88735.0,88725.0,0.64378993]
[1769323075475,0.01752766,88734.0,88725.0,0.64378993]
[1769323077018,0.01752766,88739.0,88725.0,0.64378993]
[1769323077793,0.01752766,88740.0,88725.0,0.64378993]
[1769323078609,0.02879653,88740.0,88725.0,0.64378993]
[1769323078847,0.05631066,88739.0,88725.0,0.64378993]
[1769323079074,0.01752766,88738.0,88725.0,0.64378993]
[1769323079433,0.05634387,88741.0,88725.0,0.64378993]
[1769323080469,0.011269,88739.0,88725.0,0.64378993]
[1769323081311,0.01126887,88740.0,88725.0,0.64378993]
[1769323081456,0.05631066,88738.0,88725.0,0.64378993]
[1769323083823,0.05631066,88738.0,88724.0,0.19633881]
[1769323084182,0.06757978,88738.0,88724.0,0.19633881]
[1769323084407,0.01126925,88737.0,88724.0,0.19633881]
[1769323084645,0.06757978,88738.0,88724.0,0.19633881]
[1769323085173,0.05631066,88738.0,88724.0,0.19633881]
[1769323086026,0.06757978,88738.0,88724.0,0.19633881]
[1769323086671,0.00027431,88741.0,88724.0,0.19633881]
[1769323086896,0.011269,88739.0,88724.0,0.19633881]
[1769323088589,0.05631066,88738.0,88724.0,0.19633881]
[1769323089892,0.06757978,88738.0,88724.0,0.19633881]
[1769323090085,0.05631066,88738.0,88724.0,0.19633881]
[1769323094906,0.05631066,88738.0,88725.0,0.84622395]
[1769323098369,0.01757315,88743.0,88725.0,0.66551007]
[1769323098706,0.01126849,88743.0,88726.0,0.18071388]
[1769323099720,0.01126836,88744.0,88726.0,0.18071388]
[1769323100488,0.05631066,88742.0,88726.0,0.18071388]
[1769323100689,0.05631066,88742.0,88727.0,0.01682768]
[1769323102111,0.05631066,88742.0,88727.0,0.19754156]
[1769323103819,0.06757928,88742.0,88727.0,0.19754156]
[1769323104243,0.01126874,88741.0,88727.0,0.19754156]
[1769323104625,0.06761298,88741.0,88727.0,0.19754156]
[1769323105183,0.13446056,88736.0,88723.0,0.00014274]
[1769323105336,0.01126963,88734.0,88723.0,0.00014274]
[1769323105547,0.14572994,88736.0,88723.0,0.00014274]
[1769323106165,0.14572994,88736.0,88723.0,0.18085662]
[1769323106336,0.13446056,88736.0,88723.0,0.18085662]
[1769323106537,0.14572994,88736.0,88723.0,0.18085662]
[1769323107438,0.05631066,88735.0,88723.0,0.18085662]
[1769323107666,0.06758017,88735.0,88723.0,0.18085662]
[1769323108091,0.05631066,88735.0,88723.0,0.18085662]
[1769323111610,0.05631066,88735.0,88712.0,0.01147243]
[1769323111611,0.0099107,88723.0,88712.0,0.0002]
[1769323111770,0.0099589,88723.0,88712.0,0.0002]
[1769323111973,4.82e-05,88723.0,88712.0,0.0002]
[1769323112192,4.82e-05,88723.0,88714.0,0.18083578]
[1769323114324,0.06762732,88722.0,88714.0,0.0001219]
[1769323114458,0.01131923,88723.0,88714.0,0.0001219]
[1769323114657,0.01127116,88722.0,88714.0,0.0001219]
[1769323114864,0.06758182,88722.0,88714.0,0.0001219]
[1769323115087,0.06758182,88722.0,88714.0,0.19091733]
[1769323115621,0.01127128,88721.0,88714.0,0.19091733]
[1769323115822,0.06758182,88722.0,88714.0,0.19091733]
[1769323117147,0.01127154,88719.0,88714.0,0.0001219]
[1769323117315,0.01127141,88720.0,88714.0,0.0001219]
[1769323117726,0.06758182,88722.0,88714.0,0.0001219]
[1769323118093,0.01127128,88721.0,88714.0,0.0001219]
[1769323118293,0.06758182,88722.0,88714.0,0.0001219]
[1769323118801,0.01127128,88721.0,88714.0,0.0001219]
[1769323119241,0.01127141,88720.0,88714.0,0.0001219]
[1769323119469,0.06758182,88722.0,88714.0,0.0001219]
[1769323119764,0.01127166,88718.0,88714.0,0.0001219]
[1769323119960,0.01127141,88720.0,88714.0,0.0001219]
[1769323120572,0.0157815,88721.0,88714.0,0.0001219]
[1769323121265,0.01127141,88720.0,88714.0,0.0001219]
[1769323121567,0.01127065,88726.0,88720.0,8.93e-05]
[1769323121766,0.01578068,88725.0,88720.0,9.627e-05]
[1769323121932,0.01578068,88725.0,88715.0,0.19079543]
[1769323123033,0.0045099,88725.0,88715.0,0.19079543]
[1769323123446,0.01578068,88725.0,88715.0,0.19079543]
[1769323125082,0.01578068,88725.0,88714.0,0.0001219]
[1769323125083,0.01127116,88722.0,88714.0,0.0001219]
[1769323125285,0.01127103,88723.0,88714.0,0.0001701]
[1769323125645,0.0045099,88725.0,88714.0,0.0001701]
[1769323126089,0.01578068,88725.0,88714.0,0.0001701]
[1769323126290,0.0045099,88725.0,88714.0,0.0001701]
[1769323126792,0.0045099,88725.0,88715.0,0.60990764]
[1769323126997,0.0045099,88725.0,88716.0,0.06307309]
[1769323127502,0.00202292,88725.0,88716.0,0.06307309]
[1769323131388,0.0132937,88725.0,88714.0,0.0001701]
[1769323131693,0.00202292,88725.0,88714.0,0.0001701]
[1769323132103,0.0132937,88725.0,88714.0,0.0001701]
[1769323132563,0.00202292,88725.0,88714.0,0.0001701]
[1769323135006,0.0132937,88725.0,88714.0,0.0001701]
[1769323135208,0.00202292,88725.0,88714.0,0.0001701]
[1769323135408,0.0132937,88725.0,88714.0,0.0001701]
[1769323135714,0.00202292,88725.0,88714.0,0.0001701]
[1769323138337,0.0132937,88725.0,88714.0,0.0001701]
[1769323139294,0.0112709,88724.0,88714.0,0.0001701]
[1769323139472,0.0132937,88725.0,88714.0,0.0001701]
[1769323139954,0.00202292,88725.0,88714.0,0.0001701]
[1769323140572,0.0132937,88725.0,88714.0,0.0001701]
[1769323140790,0.00202292,88725.0,88714.0,0.0001701]
[1769323141291,0.1142098,88725.0,88714.0,0.0001701]
[1769323141542,0.00202292,88725.0,88714.0,0.0001701]
[1769323142195,0.01127103,88723.0,88714.0,0.0001701]
[1769323142340,0.01127154,88719.0,88714.0,0.0001701]
[1769323142523,0.20084611,88718.0,88714.0,0.0001701]
[1769323142722,0.20084624,88717.0,88714.0,0.0001701]
[1769323143271,0.01127179,88717.0,88714.0,7.99e-05]
[1769323143484,0.0563601,88716.0,88714.0,7.99e-05]
[1769323143652,0.05636025,88716.0,88714.0,7.99e-05]
[1769323143820,0.25417575,88717.0,88714.0,7.99e-05]
[1769323144173,0.19781661,88717.0,88714.0,7.99e-05]
[1769323144335,0.05636012,88716.0,88714.0,7.99e-05]
[1769323145096,0.05636025,88715.0,88714.0,7.99e-05]
[1769323145254,0.24290507,88715.0,88714.0,7.99e-05]
[1769323146481,0.24390507,88715.0,88714.0,7.99e-05]
[1769323146881,0.24290507,88715.0,88714.0,7.99e-05]
[1769323147090,0.08049299,88715.0,88714.0,7.99e-05]
[1769323147307,0.18424762,88713.0,88712.0,5e-05]
[1769323148339,0.05636216,88712.0,88710.0,5e-05]
[1769323148952,0.01127255,88711.0,88693.0,0.0002]
[1769323149100,0.01127255,88711.0,88697.0,1.405e-05]
[1769323149324,0.12762843,88713.0,88697.0,1.405e-05]
[1769323149526,0.01127268,88710.0,88697.0,1.405e-05]
[1769323150084,0.01127281,88709.0,88697.0,1.405e-05]
[1769323150415,0.01127383,88701.0,88697.0,1.405e-05]
[1769323150613,0.0112737,88702.0,88697.0,1.405e-05]
[1769323151945,0.08085611,88709.0,88679.0,0.0001463]
[1769323151946,0.01127446,88696.0,88679.0,0.0001463]
[1769323152166,0.00679314,88691.0,88679.0,0.0001463]
[1769323152369,0.00679314,88691.0,88688.0,8.354e-05]
[1769323152814,0.00679314,88691.0,88677.0,0.19975252]
[1769323152815,0.0112756,88687.0,88677.0,0.19975252]
[1769323152973,0.01127573,88686.0,88677.0,0.19975252]
[1769323153171,0.0112756,88687.0,88677.0,0.19975252]
[1769323153380,0.0112756,88687.0,88672.0,0.62190414]
[1769323153381,0.01127586,88685.0,88672.0,0.62190414]
[1769323153554,0.13446056,88686.0,88670.0,0.18947944]
[1769323154642,0.01127586,88685.0,88670.0,0.18947944]
[1769323154879,0.14573629,88686.0,88670.0,0.18947944]
[1769323155748,0.01127611,88683.0,88670.0,0.18947944]
[1769323155981,0.01127586,88685.0,88670.0,0.18947944]
[1769323156189,0.01127599,88684.0,88670.0,0.18947944]
[1769323156663,0.00673101,88685.0,88670.0,0.18947944]
[1769323157050,0.01127484,88693.0,88671.0,0.60700834]
[1769323157238,0.01127484,88693.0,88674.0,0.18947944]
[1769323157480,0.01127497,88692.0,88675.0,0.18947944]
[1769323157638,0.01139229,88696.0,88677.0,0.18947944]
[1769323157844,0.01127459,88695.0,88680.0,0.60700834]
[1769323158138,0.01139229,88696.0,88683.0,0.10988846]
[1769323158337,0.04766501,88702.0,88670.0,0.29145796]
[1769323158338,0.0112737,88702.0,88685.0,0.18947944]
[1769323158582,0.01127383,88701.0,88687.0,0.18947944]
[1769323158788,0.01127344,88704.0,88688.0,0.60700834]
[1769323159002,0.01127344,88704.0,88692.0,0.56463703]
[1769323159194,0.01127344,88704.0,88693.0,0.18947944]
[1769323159409,0.01127357,88703.0,88693.0,0.18947944]
[1769323159940,0.0112737,88702.0,88693.0,0.18947944]
[1769323160240,0.01127357,88703.0,88693.0,0.18947944]
[1769323160381,0.0112737,88702.0,88693.0,0.18947944]
[1769323160993,0.08288108,88699.0,88685.0,0.00014276]
[1769323161199,0.01127433,88697.0,88685.0,0.00014276]
[1769323161870,0.01127446,88696.0,88685.0,0.00014276]
[1769323162071,0.01127433,88697.0,88685.0,0.00014276]
[1769323162479,0.01127497,88692.0,88685.0,0.00014276]
[1769323162696,0.01127471,88694.0,88685.0,0.00014276]
[1769323162898,0.01127484,88693.0,88685.0,0.00014276]
[1769323163117,0.01127497,88692.0,88685.0,0.00014276]
[1769323163547,0.01127522,88690.0,88685.0,0.00014276]
[1769323163751,0.0112751,88691.0,88685.0,0.00014276]
[1769323163752,0.071607,88688.0,88685.0,0.00014276]
[1769323168733,0.071607,88688.0,88685.0,7.172e-05]
[1769323171934,0.01127484,88693.0,88685.0,7.172e-05]
[1769323172248,0.071607,88694.0,88685.0,7.172e-05]
[1769323172373,0.08288171,88694.0,88685.0,7.172e-05]
[1769323172573,0.071607,88694.0,88685.0,7.172e-05]
[1769323172813,0.08288171,88694.0,88685.0,7.172e-05]
[1769323173236,0.071607,88689.0,88685.0,7.172e-05]
[1769323173596,0.0112751,88691.0,88685.0,7.172e-05]
[1769323174467,0.01127484,88693.0,88685.0,7.172e-05]
[1769323175440,0.071607,88694.0,88685.0,7.172e-05]
[1769323177052,0.01127484,88693.0,88685.0,7.172e-05]
[1769323177262,0.08288171,88694.0,88685.0,7.172e-05]
[1769323177861,0.071607,88694.0,88685.0,7.172e-05]
[1769323178152,0.08288171,88694.0,88685.0,7.172e-05]
[1769323178555,0.01127484,88693.0,88685.0,7.172e-05]
[1769323179834,0.01127497,88692.0,88685.0,7.172e-05]
[1769323180176,0.0112751,88691.0,88685.0,7.172e-05]
[1769323180854,0.01127497,88692.0,88685.0,7.172e-05]
[1769323181261,0.11209232,88693.0,88685.0,7.172e-05]
[1769323182843,0.01127459,88695.0,88685.0,7.172e-05]
[1769323182844,0.0077199,88695.0,88685.0,7.172e-05]
[1769323183367,0.01127484,88693.0,88685.0,7.172e-05]
[1769323183583,0.01127471,88694.0,88685.0,7.172e-05]
[1769323186440,0.01127484,88693.0,88685.0,7.172e-05]
[1769323188042,0.01127471,88694.0,88685.0,7.172e-05]
[1769323189267,0.01127459,88695.0,88685.0,7.172e-05]
[1769323190202,0.01127446,88696.0,88683.0,0.1055227]
[1769323190355,0.01127395,88700.0,88683.0,0.10564053]
[1769323190701,0.01127319,88706.0,88689.0,0.2178564]
[1769323190888,0.13446056,88703.0,88691.0,0.2178564]
[1769323191074,0.2445,88707.0,88694.0,0.6006726]
[1769323191401,0.2445,88707.0,88699.0,0.2173564]
[1769323191583,0.2445,88707.0,88699.0,0.21521373]
[1769323191744,0.2445,88707.0,88699.0,0.21160925]
[1769323191943,0.2445,88707.0,88699.0,0.20934803]
[1769323192365,0.2445,88707.0,88700.0,0.6006726]
[1769323193417,0.01127243,88712.0,88700.0,0.6006726]
[1769323193587,0.01127255,88711.0,88700.0,0.6006726]
[1769323193782,0.01127243,88712.0,88700.0,0.6006726]
[1769323193987,0.01127255,88711.0,88700.0,0.6006726]
[1769323194194,0.01127255,88711.0,88700.0,0.818529]
[1769323195218,0.01127294,88708.0,88700.0,0.818529]
[1769323195622,0.01127281,88709.0,88700.0,0.818529]
[1769323196056,0.0112737,88702.0,88683.0,0.00011783]
[1769323196333,0.0112737,88702.0,88684.0,0.6006726]
[1769323196549,0.0112737,88702.0,88686.0,0.6006726]
[1769323196680,0.01127383,88701.0,88689.0,0.2178564]
[1769323196879,0.01127383,88701.0,88689.0,0.818529]
[1769323197422,0.01127395,88700.0,88689.0,0.818529]
[1769323198027,0.01127383,88701.0,88689.0,0.818529]
[1769323198690,0.0112737,88702.0,88689.0,0.818529]
[1769323199641,0.01127383,88701.0,88689.0,0.818529]
[1769323199879,0.01127408,88699.0,88689.0,0.818529]
[1769323200273,0.01127383,88701.0,88689.0,0.818529]
[1769323200638,0.01127421,88698.0,88689.0,0.818529]
[1769323200970,0.01127433,88697.0,88689.0,0.818529]
[1769323201387,0.01127421,88698.0,88689.0,0.818529]
[1769323201589,0.01127433,88697.0,88689.0,0.818529]
[1769323201767,0.01127383,88701.0,88689.0,0.818529]
[1769323201999,0.0563685,88703.0,88690.0,0.2178564]
[1769323202140,0.05636759,88704.0,88690.0,0.2178564]
[1769323202141,0.01127395,88700.0,88690.0,0.2178564]
[1769323202355,0.05636787,88703.0,88690.0,0.2178564]
[1769323202758,0.0112737,88702.0,88690.0,0.2178564]
[1769323202960,0.01127294,88708.0,88691.0,0.60528474]
[1769323203174,0.01127217,88714.0,88693.0,0.24610447]
[1769323203397,0.19082039,88716.0,88697.0,0.24610447]
[1769323203755,0.19082039,88716.0,88683.0,0.01139394]
[1769323203756,0.01127243,88712.0,88702.0,0.60528474]
[1769323203962,0.01127243,88712.0,88703.0,0.24610447]
[1769323204118,0.01127255,88711.0,88703.0,0.24610447]
[1769323204317,0.01127243,88712.0,88703.0,0.24610447]
[1769323204527,0.01127217,88714.0,88704.0,0.60528474]
[1769323205158,0.01127217,88714.0,88704.0,0.85138921]
[1769323205361,0.0112723,88713.0,88704.0,0.85138921]
[1769323205527,0.01127217,88714.0,88704.0,0.85138921]
[1769323205728,0.0112723,88713.0,88704.0,0.85138921]
[1769323206547,0.01127217,88714.0,88704.0,0.85138921]
[1769323207534,0.01127192,88716.0,88704.0,0.85138921]
[1769323207987,0.01127205,88715.0,88704.0,0.85138921]
[1769323208683,0.01127217,88714.0,88704.0,0.85138921]
[1769323209583,0.01127205,88715.0,88704.0,0.85138921]
[1769323209957,0.01127217,88714.0,88704.0,0.85138921]
[1769323210163,0.0112723,88713.0,88704.0,0.85138921]
[1769323210768,0.01127217,88714.0,88704.0,0.85138921]
[1769323210972,0.01127205,88715.0,88705.0,0.24593849]
[1769323211646,0.01127217,88714.0,88705.0,0.24593849]
[1769323211987,0.0112723,88713.0,88705.0,0.24593849]
[1769323213093,0.01127255,88711.0,88705.0,0.24593849]
[1769323214435,0.01127243,88712.0,88705.0,0.24593849]
[1769323215020,0.0112723,88713.0,88705.0,0.24593849]
[1769323215222,0.01127217,88714.0,88705.0,0.24593849]
[1769323215642,0.01127217,88714.0,88705.0,0.24577256]
[1769323215847,0.0112723,88713.0,88705.0,0.24577256]
[1769323216047,0.01127217,88714.0,88705.0,0.24577256]
[1769323216608,0.01127217,88714.0,88707.0,0.26894965]
[1769323218436,0.01127243,88712.0,88707.0,0.26894965]
[1769323218952,0.01127255,88711.0,88707.0,0.26894965]
[1769323219123,0.01127243,88712.0,88707.0,0.26894965]
[1769323219322,0.0112723,88713.0,88707.0,0.26894965]
[1769323219572,0.0112723,88713.0,88707.0,0.2687832]
[1769323219784,0.0112723,88713.0,88707.0,0.26861675]
[1769323220023,0.86895196,88724.0,88686.0,0.0001859]
[1769323220024,0.01126938,88736.0,88709.0,0.26894965]
[1769323220211,0.05634821,88734.0,88713.0,0.26894965]
[1769323220445,0.01127001,88731.0,88715.0,0.26878322]
[1769323220645,0.01127027,88729.0,88715.0,0.26874322]
[1769323220818,0.01127052,88727.0,88715.0,0.26874322]
[1769323220997,0.0002127,88728.0,88717.0,0.26894965]
[1769323221201,0.0002127,88728.0,88719.0,0.26894965]
[1769323221407,0.00035539,88728.0,88719.0,0.26894965]
[1769323223421,0.00035539,88728.0,88719.0,0.26878389]
[1769323224023,0.00035539,88728.0,88720.0,0.60591972]
[1769323224179,0.00035539,88728.0,88721.0,0.26894965]
[1769323224699,0.00035539,88728.0,88710.0,0.29178646]
[1769323224700,0.00035539,88728.0,88724.0,0.60575334]
[1769323224894,0.00035539,88728.0,88727.0,0.26880504]
[1769323225135,0.00035539,88728.0,88727.0,0.87472476]
[1769323230150,0.0001993,88740.0,88719.0,0.87486937]
[1769323230361,0.0001993,88740.0,88721.0,0.60591972]
[1769323230564,0.33435181,88745.0,88723.0,0.60591972]
[1769323230858,0.33435181,88745.0,88719.0,0.00014269]
[1769323230859,0.33435181,88745.0,88727.0,0.60591972]
[1769323231058,0.32308357,88745.0,88729.0,0.26894965]
[1769323231299,0.33435181,88745.0,88729.0,0.26894965]
[1769323231504,0.32308357,88745.0,88729.0,0.26894965]
[1769323231684,0.32308357,88745.0,88729.0,0.87486937]
[1769323231878,0.33435181,88745.0,88729.0,0.87486937]
[1769323232472,0.01126849,88743.0,88729.0,0.87486937]
[1769323232672,0.01126836,88744.0,88729.0,0.87486937]
[1769323233074,0.01126849,88743.0,88729.0,0.87486937]
[1769323233297,0.01126836,88744.0,88729.0,0.87486937]
[1769323234903,0.33435181,88745.0,88729.0,0.87486937]
[1769323235118,0.01126836,88744.0,88729.0,0.87486937]
[1769323235420,0.01126811,88746.0,88720.0,0.29142611]
[1769323235573,0.01126836,88744.0,88724.0,0.27130246]
[1769323235780,0.01126836,88744.0,88726.0,0.27130246]
[1769323235977,0.01126836,88744.0,88728.0,0.27130246]
[1769323236182,0.01126836,88744.0,88730.0,0.27130246]
[1769323237204,0.01126824,88745.0,88730.0,0.27130246]
[1769323239645,0.01126811,88746.0,88730.0,0.27130246]
[1769323239854,0.01126824,88745.0,88730.0,0.27130246]
[1769323240952,0.01126836,88744.0,88730.0,0.27130246]
[1769323241569,0.01126811,88746.0,88730.0,0.27130246]
[1769323242073,0.01126798,88747.0,88731.0,0.90837464]
[1769323242253,0.01126811,88746.0,88731.0,0.90837464]
[1769323242621,0.01126824,88745.0,88731.0,0.90837464]
[1769323242821,0.01126824,88745.0,88732.0,0.27130246]
[1769323243055,0.01126836,88744.0,88734.0,0.27130246]
[1769323243871,0.01126849,88743.0,88734.0,0.27130246]
[1769323244033,0.01126862,88742.0,88734.0,0.27130246]
[1769323244220,0.01126849,88743.0,88734.0,0.27130246]
[1769323244875,0.01126874,88741.0,88734.0,0.27130246]
[1769323245226,0.06761098,88743.0,88734.0,0.27130246]
[1769323245420,0.01126862,88742.0,88734.0,0.27130246]
[1769323245621,0.01126874,88741.0,88734.0,0.27130246]
[1769323245978,0.01126862,88742.0,88734.0,0.27130246]
[1769323247214,0.01126849,88743.0,88734.0,0.27130246]
[1769323247407,0.01126862,88742.0,88734.0,0.27130246]
[1769323247623,0.01126849,88743.0,88734.0,0.27130246]
[1769323247839,0.01126862,88742.0,88734.0,0.27130246]
[1769323248415,0.01126849,88743.0,88734.0,0.27130246]
[1769323248613,0.01126836,88744.0,88734.0,0.27130246]
[1769323249448,0.01126862,88742.0,88734.0,0.27130246]
[1769323249648,0.01126849,88743.0,88734.0,0.27130246]
[1769323250027,0.01126836,88744.0,88734.0,0.27130246]
[1769323250232,0.12333616,88745.0,88734.0,0.27130246]
[1769323250442,0.13469685,88760.0,88735.0,0.01559795]
[1769323250443,0.0112676,88750.0,88735.0,0.01559795]
[1769323250642,0.01126773,88749.0,88734.0,0.01672491]
[1769323251189,0.12335375,88749.0,88734.0,0.01672491]
[1769323251513,0.11208602,88748.0,88734.0,0.01672491]
[1769323251714,0.11208602,88747.0,88734.0,0.01672491]
[1769323251917,0.01126785,88748.0,88734.0,0.01672491]
[1769323252121,0.12336069,88749.0,88734.0,0.01672491]
[1769323252951,0.01126798,88747.0,88734.0,0.01672491]
[1769323253153,0.01126811,88746.0,88734.0,0.01672491]
[1769323253352,0.01126824,88745.0,88734.0,0.01672491]
[1769323254672,0.01126811,88746.0,88734.0,0.01672491]
[1769323256432,0.12339317,88747.0,88734.0,0.01672491]
[1769323256993,0.01126798,88747.0,88734.0,0.01672491]
[1769323258624,0.12340713,88748.0,88734.0,0.01672491]
[1769323259659,0.11213928,88748.0,88734.0,0.01672491]
[1769323259809,0.11213928,88747.0,88734.0,0.01672491]
[1769323260013,0.11213928,88746.0,88734.0,0.01672491]
[1769323260210,0.32966483,88750.0,88734.0,0.01672491]
[1769323260454,0.01126722,88753.0,88734.0,0.01672491]
[1769323260455,0.11216534,88749.0,88734.0,0.01672491]
[1769323260658,0.01146665,88752.0,88736.0,0.63707218]
[1769323260861,0.01126773,88749.0,88739.0,0.27130246]
[1769323261062,0.01126785,88748.0,88739.0,0.27130246]
[1769323262521,0.01126798,88747.0,88739.0,0.27130246]
[1769323262767,0.01126785,88748.0,88739.0,0.27130246]
[1769323263967,0.01126798,88747.0,88739.0,0.27130246]
[1769323264320,0.01126785,88748.0,88739.0,0.27130246]
[1769323264526,0.01126773,88749.0,88739.0,0.27130246]
[1769323265148,0.0001993,88752.0,88749.0,1.336e-05]
[1769323265300,0.01146665,88752.0,88749.0,1.336e-05]
[1769323265718,0.01146665,88752.0,88741.0,0.28759488]
[1769323265719,0.01126747,88751.0,88741.0,0.28759488]
[1769323266721,0.0001993,88752.0,88741.0,0.28759488]
[1769323266923,0.0001993,88752.0,88741.0,0.89781518]
[1769323267127,0.13446056,88758.0,88730.0,0.29142611]
[1769323267128,0.25576646,88759.0,88742.0,0.6102203]
[1769323267335,0.11208576,88758.0,88746.0,0.6102203]
[1769323267492,0.01126671,88757.0,88748.0,0.28759488]
[1769323267688,0.01126684,88756.0,88748.0,0.28759488]
[1769323268173,0.01126697,88755.0,88748.0,0.28759488]
[1769323268398,0.01126684,88756.0,88748.0,0.28759488]
[1769323269045,0.01126671,88757.0,88748.0,0.28759488]
[1769323269244,0.01126684,88756.0,88748.0,0.28759488]
[1769323269466,0.01126671,88757.0,88748.0,0.28759488]
[1769323269877,0.01126659,88758.0,88748.0,0.28759488]
[1769323270251,0.24464266,88759.0,88750.0,0.28759488]
[1769323270488,0.24464266,88759.0,88752.0,0.89781518]
[1769323271308,0.24464266,88759.0,88753.0,0.28759488]
[1769323272040,0.00014266,88759.0,88753.0,0.28759488]
[1769323272183,0.00014266,88759.0,88753.0,0.89781518]
[1769323272384,0.00014266,88759.0,88741.0,0.6102203]
[1769323272590,0.00014266,88759.0,88744.0,0.28759488]
[1769323272823,0.00014266,88759.0,88747.0,0.6102203]
[1769323272985,0.00014266,88759.0,88749.0,0.2877701]
[1769323274867,0.00014266,88759.0,88751.0,0.59058548]
[1769323275070,0.00014266,88759.0,88751.0,0.87835558]